Cogmind - Beta 16 --- EXPLORER MODE // 2026.01.05 @ 10:08:25 Player: K.K.Y. Result: Destroyed by Shrapnel Trap Performance ------------- Evolutions (0) 0 Regions Visited (3) 600 Robots Destroyed (52) 260 Value Destroyed (1343) 1343 Prototype IDs (18) 360 Alien Tech Used (0) 0 Bonus (-84) -84 TOTAL SCORE: 2479 Bonus ------- Friendly Fire -84 Cogmind --------- Core Integrity 0/250 Matter 295/300 Energy 99/100 System Corruption 0% Temperature Cool (0) Movement Core (450) Ox8 Location -10/Subcaves Parts ------- > --- POWER (1) -------- (None) > --- PROPULSION (2) --- (None) > --- UTILITY (3) ------ Improved Heat Sink Large Storage Unit > --- WEAPON (2) ------- Beamcaster > --- INVENTORY (15) --- High-capacity Storage Unit Huge Storage Unit Humpback Structural Scanner Sensor Array Improved Terrain Scanner Launcher Guidance Computer Hardened Light Armor Plating Improved Light Armor Plating Gun Armor Shock Absorption System Riot Gun Barrage Gun Mining Laser Peak State ------------ > --- POWER ------------ Light Nuclear Core > --- PROPULSION ------- Light Treads > --- UTILITY ---------- Improved Heat Sink Improved Heat Sink Large Storage Unit > --- WEAPON ----------- Beamcaster Particle Cannon > --- INVENTORY -------- High-capacity Storage Unit Huge Storage Unit Humpback Structural Scanner Sensor Array Improved Terrain Scanner Launcher Guidance Computer Hardened Light Armor Plating Improved Light Armor Plating Shock Absorption System Barrage Gun Mining Laser [Rating: 20] Favorites ----------- Power Ion Engine Engine Ion Engine Power Core Light Nuclear Core Propulsion Light Treads Treads Light Treads Utility Large Storage Unit Device Improved Heat Sink Storage Large Storage Unit Protection Hardened Light Armor Plating Weapon Particle Cannon Energy Gun Beamcaster Energy Cannon Particle Cannon Build | -11 -10 -10 -10 ------- Run | Yrd Mat Min Sub Slots Evolved 1 | . 1 . . Power . | . . . . Propulsion . | . . . . Utility 1 | . 1 . . Weapon . | . . . . Parts Attached 30 | 7 9 7 7 Power 6 | 1 . 2 3 Engine 5 | 1 . 1 3 Core 1 | . . 1 . Reactor . | . . . . Propulsion 7 | 2 3 1 1 Treads 7 | 2 3 1 1 Leg . | . . . . Wheel . | . . . . Hover . | . . . . Flight . | . . . . Utility 9 | 2 3 2 2 Device 2 | . . . 2 Storage 2 | 1 1 . . Processor . | . . . . Hackware . | . . . . Protection 5 | 1 2 2 . Artifact . | . . . . Weapon 8 | 2 3 2 1 Energy Gun 4 | 2 1 . 1 Energy Cannon 4 | . 2 2 . Ballistic Gun . | . . . . Ballistic Cannon . | . . . . Launcher . | . . . . Special Weapon . | . . . . Impact Weapon . | . . . . Slashing Weapon . | . . . . Piercing Weapon . | . . . . Special Melee Weapon . | . . . . Unidentified Prototypes . | . . . . Parts Lost 11 | . 3 1 7 Power 2 | . . . 2 Propulsion 3 | . 1 . 2 Utility 3 | . 1 1 1 Weapon 3 | . 1 . 2 Highest Loss Streak 3 | . 3 1 2 To Critical Strikes . | . . . . Average Backups 11 | . 8 11 13 Power . | . . 1 . Propulsion . | . 1 . . Utility 8 | . 3 7 10 Weapon 2 | . 2 2 2 Tool/Special . | . . . . Unused Backups 14 | . . . 14 Power . | . . . . Propulsion . | . . . . Utility 10 | . . . 10 Weapon 4 | . . . 4 Tool/Special . | . . . . Average Slot Usage (%) 76 | . 77 98 70 Engine 8 | . 11 12 6 Core 1 | . . . 2 Treads 14 | . 24 25 8 Device 7 | . . . 12 Storage 12 | . 12 12 12 Protection 9 | . 13 24 3 Energy Gun 5 | . 4 . 8 Energy Cannon 15 | . 9 24 16 Peak Build Rating 20 | 7 13 17 20 Average Rating 13 | 6 8 14 16 On Entrance 8 | . 7 10 17 Avg Prop Armor Cover (%) 10 | . 10 . . Naked Turns . | . . . . Heaviest Build 43 | 20 34 43 43 Greatest Support 40 | 40 40 40 40 Greatest Overweight (x) 11 | 2 10 1 11 Average Overweight (x) 1 | . . . 3 Largest Inventory Capacity 15 | 10 15 15 15 Average Capacity 14 | 9 12 15 15 Most Carried 15 | 5 15 15 15 Average Carried 12 | . 8 12 14 Final Capacity 15 | 10 15 15 15 Final Carried 15 | 2 12 15 15 Class Distribution -------------------- 99% | Hacker-Mutant Dominant Class ---------------- Hacker-Mutant | -10/Materials Hacker-Mutant | -10/Mines Hacker-Mutant | -10/Subcaves Resources | -11 -10 -10 -10 ----------- Run | Yrd Mat Min Sub Matter Collected 710 | 199 366 80 65 Remotely . | . . . . Salvage Created 1766 | 198 434 235 899 Parts 104 | 16 37 11 40 Haulers Intercepted 2 | . 2 . . Recyclers Shooed 1 | . 1 . . Parts Field Recycled . | . . . . Retrieved Matter . | . . . . Parts Self-Destructed . | . . . . Prevented . | . . . . Parts Restored . | . . . . Kills | -11 -10 -10 -10 ------- Run | Yrd Mat Min Sub Combat Hostiles Destroyed 33 | . 8 6 19 Guns 4 | . 3 . 1 Cannons 25 | . 5 4 16 AOE 2 | . . 2 . Classes Destroyed 12 | 3 6 1 2 Worker 1 | 1 . . . Builder 4 | . 4 . . Tunneler 6 | 6 . . . Hauler 2 | . 2 . . Recycler 1 | 1 . . . Turret 2 | . . . 2 Watcher 3 | . 3 . . Swarmer 8 | . 4 . 4 Grunt 7 | . 3 4 . Sentry 3 | . . 2 1 Artisan 3 | . . . 3 Subdweller 15 | . 1 . 14 Best Kill Streak 4 | 3 4 2 3 Combat Bots Only 3 | . 3 2 3 Max Kills in Single Turn 2 | 1 1 2 1 Gunslinging . | . . . . Exploded 2 | . . 2 . Melee . | . . . . Uniques/NPCs Destroyed . | . . . . Combat | -11 -10 -10 -10 -------- Run | Yrd Mat Min Sub Hostile Shots Fired 204 | . 64 19 121 Missed 59 | . 15 4 40 Hits 145 | . 49 15 81 Projectile 145 | . 49 15 81 AOE 3 | . 3 . . Damage Taken 1533 | . 440 208 885 Core 263 | . 11 49 203 Absorbed by Shields . | . . . . Ignored by Resistances 951 | . 276 128 547 Regen/Repaired (Parts) 108 | . 108 . . Core Remaining (%) 100 | 100 . . . Volleys Fired 157 | 14 48 11 84 Largest 2 | 2 2 2 2 Hottest 143 | 80 136 136 143 Shots Fired 297 | 28 84 19 166 Gun 114 | 28 54 . 32 Cannon 183 | . 30 19 134 Launcher . | . . . . Special . | . . . . Kinetic . | . . . . Thermal 297 | 28 84 19 166 Explosive . | . . . . Electromagnetic . | . . . . Robot Hit Streak 38 | 18 18 9 38 Robot Miss Streak 3 | 1 3 1 1 Penetration Max . | . . . . Secondary Targets . | . . . . Shots Hit Robots 219 | 23 69 15 112 Core Hits 81 | 9 27 7 38 Critical Kills 2 | . . . 2 Critical Parts Destroyed . | . . . . Critical Strikes 3 | . . . 3 Burn 1 | . . . 1 Meltdown 2 | . . . 2 Melee Attacks . | . . . . Impact . | . . . . Slashing . | . . . . Piercing . | . . . . Sneak Attacks . | . . . . Combat Hostiles . | . . . . Follow-up Attacks . | . . . . Damage Inflicted 4008 | 256 1025 441 2286 Guns 1101 | 256 510 . 335 Cannons 2754 | . 515 288 1951 Explosions 153 | . . 153 . Melee . | . . . . Ramming . | . . . . Kinetic . | . . . . Thermal 4008 | 256 1025 441 2286 Explosive . | . . . . Electromagnetic . | . . . . Impact . | . . . . Slashing . | . . . . Piercing . | . . . . Highest Corruption . | . . . . Average Corruption . | . . . . Corruption Purged . | . . . . Corruption Blocked . | . . . . Overload Shots . | . . . . Overflow Damage 2 | . 2 . . Projectiles 2 | . 2 . . Explosions . | . . . . Melee . | . . . . Knockbacks . | . . . . Impact . | . . . . Kinetic . | . . . . Secondary . | . . . . Self-Inflicted Damage 42 | . . 42 . Shots 2 | . . 2 . Rammed . | . . . . Targets Rammed . | . . . . Kicked . | . . . . Crushed . | . . . . Highest Temperature 909 | 135 909 459 597 Average Temperature 171 | 41 209 173 153 Received Heat Transfer 567 | . 123 90 354 Effects 51 | . 40 3 8 Shutdowns 10 | . 7 1 2 Energy Bleed 3 | . 2 . 1 Interference 4 | . 2 . 2 Matter Decay 6 | . 6 . . Short Circuit 2 | . 2 . . Damage (minor) 11 | . 7 2 2 Damage (major) 15 | . 14 . 1 Siege Activations . | . . . . Martial Activations . | . . . . Shielding Activations . | . . . . Robots Disrupted . | . . . . Combat Hostiles . | . . . . Robots Corrupted . | . . . . Combat Hostiles . | . . . . Parts Fried . | . . . . Impact Corruptions . | . . . . Robots Melted 2 | . . . 2 Combat Hostiles 2 | . . . 2 Parts Melted 15 | 2 2 1 10 Heat Transferred 7572 | 575 2098 718 4181 Parts Sabotaged . | . . . . Parts Stolen . | . . . . Parts Stripped . | . . . . Power Chain Reactions . | . . . . Alert | -11 -10 -10 -10 ------- Run | Yrd Mat Min Sub Maximum Alert Level . | . . . . Low Security (%) 100 | 100 100 100 . Level 1 . | . . . . Level 2 . | . . . . Level 3 . | . . . . Level 4 . | . . . . Level 5 . | . . . . High Security . | . . . . Max Security . | . . . . Peak Influence 89 | 10 57 89 . Initial 2 | . 2 . . Average 3 | 1 2 4 . Influence Increases 645 | 40 237 183 185 Destroy 0b10 Robot/C 400 | . 140 120 140 Destroy 0b10 Robot/NC 85 | 40 45 . . Destroy Leader 60 | . 40 20 . Successful Hack 10 | . 10 . . Disable Machine 28 | . . 28 . Destroy Structure 17 | . 2 15 . Lose Combat Pursuer 45 | . . . 45 Influence Decreases 645 | 35 242 183 185 Entered New Map 3 | . 3 . . Time Decay 592 | 35 219 183 155 Lost Part 50 | . 20 . 30 Squads Dispatched . | . . . . Investigation . | . . . . Extermination . | . . . . Reinforcement . | . . . . Assault . | . . . . Garrison . | . . . . Intercept . | . . . . Searches Triggered . | . . . . Construction Impeded . | . . . . Haulers Reinforced . | . . . . Active Scanning Responses . | . . . . Cargo Convoy Interrupts . | . . . . Stealth | -11 -10 -10 -10 --------- Run | Yrd Mat Min Sub Distress Signals . | . . . . Communications Jammed . | . . . . Distress Signals . | . . . . Times Spotted 43 | . 14 6 23 Peak Tracking Total 4 | . 4 2 3 Tactical Retreats 2 | . . . 2 Traps | -11 -10 -10 -10 ------- Run | Yrd Mat Min Sub Traps Triggered 6 | . 5 . 1 Indirectly . | . . . . Trap Hack Attempts . | . . . . Triggered . | . . . . Disarmed 4 | . 4 . . Reprogrammed . | . . . . Reused . | . . . . Traps Extracted . | . . . . Installed . | . . . . Triggered . | . . . . Machines | -11 -10 -10 -10 ---------- Run | Yrd Mat Min Sub Machines Disabled 10 | . . 7 3 Max in Single Turn 6 | . . 6 1 Machines Repaired . | . . . . Machines Dismantled . | . . . . Machines Sabotaged . | . . . . Overloaded Fab Kills . | . . . . Hacking | -11 -10 -10 -10 --------- Run | Yrd Mat Min Sub Machines Accessed 13 | . 11 . 2 Terminals 8 | . 8 . . Fabricators . | . . . . Repair Stations 1 | . 1 . . Recycling Units 2 | . 2 . . Scanalyzers . | . . . . Garrison Access . | . . . . Total Hacks 34 | . 28 . 6 Successful 24 | . 18 . 6 Failed 10 | . 10 . . Catastrophic . | . . . . Database Lockouts . | . . . . Manual 20 | . 20 . . Terminals 20 | . 20 . . Fabricators . | . . . . Repair Stations 3 | . 3 . . Recycling Units 5 | . 5 . . Scanalyzers . | . . . . Garrison Access . | . . . . Terminal Hacks 11 | . 5 . 6 Record 5 | . . . 5 Prototype ID Bank 4 | . 4 . . Disarm Traps 1 | . 1 . . Proto ID Catalog 1 | . . . 1 Fabricator Hacks . | . . . . Repair Station Hacks 2 | . 2 . . Scan Component 1 | . 1 . . Repair 1 | . 1 . . Recycling Unit Hacks 3 | . 3 . . Report Inventory 1 | . 1 . . Retrieve Components 2 | . 2 . . Scanalyzer . | . . . . Garrison Access Hacks . | . . . . Unauthorized Hacks 8 | . 8 . . Terminals 8 | . 8 . . Botnet 8 | . 8 . . Fabricators . | . . . . Repair Stations . | . . . . Recycling Units . | . . . . Scanalyzers . | . . . . Garrison Access . | . . . . Data Cores Recovered . | . . . . Used . | . . . . Hacking Detections 7 | . 7 . . Full Trace Events 2 | . 2 . . Feedback Events . | . . . . Feedback Blocked . | . . . . Robot Schematics Acquired . | . . . . Robots Built . | . . . . Authchips . | . . . . Time . | . . . . Total Robot Build Rating . | . . . . Part Schematics Acquired . | . . . . Parts Built . | . . . . Authchips . | . . . . Time . | . . . . Total Part Build Rating . | . . . . Part Studies Acquired . | . . . . Parts Repaired 1 | . 1 . . Time 16 | . 16 . . Parts Recycled . | . . . . Recycled Matter . | . . . . Retrieved Matter . | . . . . Retrieved Components 6 | . 6 . . Parts Scanalyzed . | . . . . Part Schematics Acquired . | . . . . Parts Damaged . | . . . . Bothacking | -11 -10 -10 -10 ------------ Run | Yrd Mat Min Sub Used RIF Installer . | . . . . Robots Hacked . | . . . . Non-combat . | . . . . Combat . | . . . . Robot Hacks Applied . | . . . . Relay Couplers Released . | . . . . Fabnet Peak Effective % . | . . . . Robots Rewired . | . . . . Allies Hacked . | . . . . Hacks Repelled . | . . . . Allies | -11 -10 -10 -10 -------- Run | Yrd Mat Min Sub Total Allies . | . . . . Largest Group . | . . . . Highest-Rated Group . | . . . . Highest-Rated Ally . | . . . . Total Orders . | . . . . Ally Attacks . | . . . . Total Damage . | . . . . Kills . | . . . . Allies Corrupted . | . . . . Allies Melted . | . . . . Intel | -11 -10 -10 -10 ------- Run | Yrd Mat Min Sub Active Infowar (turns) . | . . . . Robot Analysis Total . | . . . . Derelict Logs Recovered 1 | . . . 1 Drone Launches . | . . . . Drone Recoveries . | . . . . Exploration | -11 -10 -10 -10 ------------- Run | Yrd Mat Min Sub Turns Passed 10287 | 230 2477 1573 6007 Spaces Moved 3631 | 123 1154 629 1725 Core 583 | 24 26 . 533 Treads 3048 | 99 1128 629 1192 Legs . | . . . . Wheels . | . . . . Hover . | . . . . Flight . | . . . . Fastest Speed 50 | 50 160 160 240 Average Speed 256 | 141 167 236 330 Slowest Speed 600 | 160 550 240 600 Overloaded Moves . | . . . . Propulsion Burnouts . | . . . . Robots Hopped . | . . . . Potential Cave-ins . | . . . . Cave-ins Triggered . | . . . . Exploration Rate (%) 75 | 8 100 99 95 Regions Visited 3 Branch Regions 2 Pre-discovered Areas 2 | . . . 2 Known Exits Taken 3 | 1 1 1 . Unknown Exits Taken . | . . . . Scrap Searched 8 | . . 1 7 Spaces Dug . | . . . . Terrain Destroyed 20 | . . 20 . Melee . | . . . . Projectile 1 | . . 1 . AOE 19 | . . 19 . Terrain Rammed . | . . . . Walls Destroyed . | . . . . Machines Disabled . | . . . . Actions | -11 -10 -10 -10 --------- Run | Yrd Mat Min Sub Total 4334 | 150 1622 697 1865 Wait 450 | . 378 36 36 Move 3628 | 122 1153 628 1725 Hop . | . . . . Pick Up 42 | 7 20 10 5 Fast Attach 6 | 2 2 . 2 Attach 21 | 5 9 3 4 Detach 3 | . 3 . . Swap 10 | . 3 5 2 Drop 17 | . 6 4 7 Fire 157 | 14 48 11 84 Melee . | . . . . Ram . | . . . . Kick . | . . . . Crush . | . . . . Escape Stasis . | . . . . Rewire . | . . . . Trap . | . . . . Miscellaneous . | . . . . Route ------- -11/Scrapyard -10/Materials (discovered 5 exits: *Mat x3 / *Min / *Sub) -10/Mines (discovered 3 exits: *Mat x2 / *Sub) -10/Subcaves (discovered 3 exits: *Mat x2 / *Rec) History --------- Turn | Location | Event 22 | -11/Scrapyard | Identified exit to Materials 22 | -11/Scrapyard | Discovered exit to Materials (range 14) 231 | -11/Scrapyard | Entered Materials 231 | -10/Materials | Evolved 1 slot: Utility x1 308 | -10/Materials | Build established: Hacker-Mutant 442 | -10/Materials | Identified exit to Materials 442 | -10/Materials | Discovered exit to Materials (range 14) 731 | -10/Materials | Derelicts attacked the area 759 | -10/Materials | Identified exit to Subcaves 759 | -10/Materials | Discovered exit to Subcaves (range 11) 976 | -10/Materials | Lost 3 parts (1n1u1w) 1134 | -10/Materials | Discovered exit to Materials (range 7) 1242 | -10/Materials | Identified exit to Mines 1242 | -10/Materials | Discovered exit to Mines (range 12) 1483 | -10/Materials | Repaired Particle Cannon 1666 | -10/Materials | Discovered exit to Materials (range 13) 2708 | -10/Materials | Entered Mines 2731 | -10/Mines | Met a Derelict bent on vengeance 2858 | -10/Mines | Discovered exit to Subcaves (range 10) 3045 | -10/Mines | Deemed a non-threat by the Exiles lab entrance 3139 | -10/Mines | YI-UF0 nonchalantly dropped a Grenade Launcher on the ground 3453 | -10/Mines | Assembled infested the area 3486 | -10/Mines | Met 8R-AWN 3616 | -10/Mines | Discovered exit to Materials (range 8) 3698 | -10/Mines | Discovered exit to Materials (range 9) 4281 | -10/Mines | Entered Subcaves 4334 | -10/Subcaves | Learned location of Zion (-6) 4334 | -10/Subcaves | Met a Zionite searching for "candidates" 4785 | -10/Subcaves | Ambushed by angry Subdweller bent on revenge 4825 | -10/Subcaves | Core integrity fell below 50% 5045 | -10/Subcaves | Identified exit to Materials 5045 | -10/Subcaves | Discovered exit to Materials (range 12) 5751 | -10/Subcaves | Disturbed a concealed Subdweller 5964 | -10/Subcaves | Disturbed a concealed Subdweller 6085 | -10/Subcaves | Shifting Twisted Machinery released Battle Cannon 6086 | -10/Subcaves | Discovered exit to Materials (range 13) 6117 | -10/Subcaves | Shifting Twisted Machinery released Sub. Laser 6250 | -10/Subcaves | Identified exit to Recycling 6250 | -10/Subcaves | Discovered exit to Recycling (range 15) 6654 | -10/Subcaves | Visited Clippyterm 6661 | -10/Subcaves | Learned location of Deep Caves (-6) 6661 | -10/Subcaves | Learned Factory fabricator intel 6836 | -10/Subcaves | Visited 4L-MR0's lab 6868 | -10/Subcaves | Found Gun Armor 6915 | -10/Subcaves | Core integrity fell below 20% 7392 | -10/Subcaves | Ambushed by angry Subdweller bent on revenge 8880 | -10/Subcaves | Shifting Twisted Machinery released Battle Cannon 9800 | -10/Subcaves | Shifting Twisted Machinery released Flamer 10288 | -10/Subcaves | Destroyed by Shrapnel Trap Last Messages --------------- 08758_ EQ-S5R(R) destroyed. 08761_ Acquired 10 matter. 08763_ 5I-C1M(O) collects matter. 08767_ 5I-C1M(O) puts together Flamer. 08771_ Acquired Sub. Power Source. 08785_ OG-KCA(R) destroyed. 08794_ Acquired 10 matter. 08806_ Dropped Sub. Power Source. 08808_ 5I-C1M(O) collects matter. 08810_ 5I-C1M(O) puts together Battle Rifle. Battle Cannon falls loose from the Twisted Machinery. 09679_ Sub. Power Source shoots sparks and powers down. 09707_ Dropped Broken Sub. Power Source. Flamer falls loose from the Twisted Machinery. 10288_ Triggered Shrapnel Trap. 10288_ An expanding cloud of shrapnel blasts out in all directions. 10288_ Particle Cannon destroyed. Map ----- +----------------------------------------------------+ | ## # ## #???????????????????? | | ### #???????????????????? | | ## ### # # # # ##???????????????????? | | ### ##?## ####### ####????????????????????? | | ##### #??# ##?????####???????????????????????? | | ### #?### #????????????????????????????????? | | ## ### #????????????????????????????????? | | ### " #????????????????????????????????? | | #?#" " " ###????????????????????????????????? | | #### """ ##???##?????????????????????????????? | | " "####??? #?????????????????????????????? | | """ " #??#?? " #?????????????????????????????? | | """" " ##? ## "#??????????????????????????????? | | ## "" """#?# ""#??????????????????????????????? | | ?## " "## " #??????????????????????????????? | | ??##"" "" " #?????????????????????????????## | | ???## """" " #?????????????????????????????# | | ????# """" "" #?????????????????????????????## | | ????##### """"" ????????????????????????????????# | | ????????# ""## "??????##????????????????????###?## | | ????????##"##??#?????## ???????????????????# ### | | ?????????###?????????# ???????????????????# | | ?????????????????????#^ ???####????????????# ## | | ?????????????????????# #### ###?##??????## #? | | ?????????????????????# ## #????### ##? | | ?????????????????????# @ ####?# #?? | | ?????????????????????# ## #?# ##?? | | ?????????????????????# ###### #?# ##?? | | ?????????????????????# ???## ##?# " #?? | | ?????????????????????# ??## #??## """#?? | | ?????????????????????# ## ##???## "|#?? | | ?????????????????????# # ##?##### #?? | | ?????????????????????# ##??# ##? | | ?????????????????????## # ### ##??# #? | | ??????????????????????# ## #### ##? | | ??????????????????????# ### ## """#?? | | ??????????????????????# ## ## """#?? | | ??????????????????????#### ## ### """##? | | ??????????????????????##### # ##?#### """"## | | ?????????????????????## * ##?????## """""# | | ?????????????????????# ######### "# | | ?????????????????????## ## ""# | | ??????????????????????#### "" | | ?????????????????????????## | | ??????????????????????????# ## ## "" | | ??????????????????????????# ### ##### "" | | ??????????????????????????# ###?# #?# "" | | ??????????????????????????####### ##?# "" | | ?????????????????????????#### ##??# ### | | ????????????????????????## ##???## #?## | +----------------------------------------------------+ Best States ------------- Heat Dissipation 53 Energy Generation 15 Energy Capacity 250 Matter Stores 300 Matter Capacity 300 Sight Range 16 Terrain Scan Density 10 Armor Coverage 300 Resistance: KI 35 Resistance: TH 35 Resistance: EX 35 Resistance: EM 35 Resistance: I 35 Resistance: S 35 Resistance: P 35 Evasion (%) 50 Recoil Reduction 2 Offensive Hacking 20 Item Schematics ----------------- None Robot Schematics ------------------ None Fabricated ------------ Nothing Repaired ---------- Particle Cannon | 1% | -10/Materials Studied --------- None Alien Tech Used ----------------- None Achievements -------------- None Challenges ------------ None Game ------ Seed HeavyGhostAutobeam Manual? 0 Play Time 00:31:46 Cumulative 244.6 hours Start 2026.01.05 @ 09:35:03 End 2026.01.05 @ 10:08:25 Sessions 1 Manual Loads 0 Difficulty Explorer Special Mode None Game No. 387 Rogue 0 Adventurer 0 Explorer 387 Win Type - Total 0 Types 0/0/0/0/0/0/0/0/0/0 Lore% 71 Gallery% 69 Achievement% 54 Wizard Run 0 Options --------- Layout 1 ASCII 0 Keyboard 0 Movement Mouse Keybinds 0 Fullscreen 1 Font 24/Smallcaps Map View 50x35 Zoom Use 0% Tactical HUD 1 Map Filters NONE Filters NONE Steam 1 RUN: 37b017b8-f529-4763-b128-667dc4ea6d8a